bitfinex/quotes_BTCUSD_20250417
["timestamp","ask_amount","ask_price","bid_price","bid_amount"]
[1744907798737,0.01176802,84976.0,84965.0,0.01176955]
[1744907798944,0.01176927,84967.0,84963.0,0.002354]
[1744907799140,0.24714793,84970.0,84961.0,0.23540212]
[1744907799356,0.24714793,84970.0,84960.0,0.01177024]
[1744907799357,0.01176885,84970.0,84964.0,0.01176969]
[1744907799603,0.24715186,84968.0,84965.0,0.01176955]
[1744907799803,0.01176927,84967.0,84964.0,0.01176969]
[1744907799916,0.01126927,84967.0,84964.0,0.01176969]
[1744907800123,0.01176913,84968.0,84964.0,0.01176969]
[1744907800344,0.01176955,84965.0,84962.0,0.24716856]
[1744907800548,0.01176955,84965.0,84962.0,0.01176996]
[1744907800749,0.01176969,84964.0,84960.0,0.35177024]
[1744907800961,0.01176982,84963.0,84960.0,0.34]
[1744907801481,0.24716788,84963.0,84960.0,0.34]
[1744907801685,0.01177121,84953.0,84950.0,0.5088685]
[1744907801881,0.01177093,84955.0,84950.0,0.40744988]
[1744907802143,0.24718721,84956.0,84952.0,0.01177135]
[1744907802442,0.23542706,84952.0,84950.0,0.39567825]
[1744907802856,0.23542983,84951.0,84950.0,0.39567825]
[1744907803067,0.23542706,84952.0,84950.0,0.18236732]
[1744907803300,0.24720359,84951.0,84947.0,0.01177204]
[1744907803466,0.01177163,84950.0,84947.0,0.04734502]
[1744907803675,0.0117719,84948.0,84947.0,0.04734502]
[1744907803879,0.23544092,84947.0,84945.0,0.00974243]
[1744907804089,0.01177121,84953.0,84949.0,0.24720606]
[1744907804291,0.01222146,84952.0,84948.0,0.24721005]
[1744907804500,0.01177149,84951.0,84947.0,0.01177204]
[1744907804669,0.24720886,84949.0,84947.0,0.04892128]
[1744907804834,0.23544369,84946.0,84945.0,0.00974243]
[1744907805464,0.23544369,84946.0,84945.0,0.05658114]
[1744907805666,0.23544092,84947.0,84945.0,0.04768071]
[1744907806647,0.11944791,84946.0,84945.0,0.04768071]
[1744907806842,0.23544646,84945.0,84943.0,19.95368071]
[1744907807153,0.24721864,84946.0,84943.0,19.95368071]
[1744907807358,0.23544923,84944.0,84943.0,19.95368071]
[1744907808792,0.40059714,84944.0,84943.0,19.95368071]
[1744907809016,0.40059714,84944.0,84943.0,19.85968071]
[1744907811435,0.51682043,84944.0,84943.0,19.85468071]
[1744907811585,0.51682043,84944.0,84943.0,19.85368071]
[1744907811792,0.40259714,84944.0,84943.0,19.85368071]
[1744907813634,0.002,84944.0,84943.0,19.85368071]
[1744907814197,0.12144791,84944.0,84943.0,19.85368071]
[1744907814401,0.002,84944.0,84943.0,20.08913271]
[1744907815995,0.002,84944.0,84943.0,20.43013271]
[1744907821341,0.002,84944.0,84943.0,20.09013271]
[1744907821801,0.0117719,84948.0,84944.0,0.23544752]
[1744907822047,0.0117719,84948.0,84945.0,0.23544569]
[1744907822238,0.24720224,84951.0,84945.0,0.24721801]
[1744907822456,0.01177176,84949.0,84945.0,0.24721801]
[1744907822942,0.24720797,84949.0,84946.0,0.23544305]
[1744907823163,0.24720797,84949.0,84945.0,0.24721801]
[1744907824098,0.00045011,84952.0,84950.0,0.2354326]
[1744907824635,0.00045011,84952.0,84951.0,0.23542983]
[1744907824842,0.01222146,84952.0,84949.0,0.23543462]
[1744907824969,0.01222146,84952.0,84950.0,0.2354317]
[1744907825374,0.00045011,84952.0,84950.0,0.2354317]
[1744907826198,0.00045011,84952.0,84951.0,0.34]
[1744907828654,0.23542983,84951.0,84950.0,0.00869835]
[1744907829087,0.24721204,84948.0,84945.0,0.01177232]
[1744907829385,0.24721204,84948.0,84946.0,0.34]
[1744907829735,0.23543615,84949.0,84946.0,0.57544342]
[1744907830565,0.01177176,84949.0,84946.0,0.34]
[1744907831582,0.01177176,84949.0,84946.0,0.57544323]
[1744907831786,0.24720759,84949.0,84946.0,0.57544323]
[1744907832096,0.24720731,84949.0,84946.0,0.23544323]
[1744907832276,0.24720731,84949.0,84946.0,0.2562517]
[1744907832678,0.23544092,84947.0,84946.0,0.00903629]
[1744907832910,0.23544092,84947.0,84945.0,0.001]
[1744907832911,0.23544369,84946.0,84945.0,0.001]
[1744907833726,0.3548916,84946.0,84945.0,0.001]
[1744907834130,0.23544923,84944.0,84943.0,19.83368071]
[1744907834331,0.35489714,84944.0,84943.0,19.83368071]
[1744907834648,0.35489714,84944.0,84943.0,19.76068071]
[1744907838034,0.35489714,84944.0,84943.0,19.75968071]
[1744907838035,0.40039714,84944.0,84943.0,19.75968071]
[1744907841524,0.43475517,84944.0,84943.0,19.21972456]
[1744907841730,1.21523799,84944.0,84943.0,18.65142828]
[1744907841937,0.87523799,84944.0,84943.0,18.65142828]
[1744907842146,1.90820592,84944.0,84943.0,18.65142828]
[1744907842350,1.90820592,84944.0,84943.0,18.40621515]
[1744907843424,1.90820592,84944.0,84943.0,18.30941515]
[1744907843659,2.25820592,84944.0,84943.0,17.55109104]
[1744907843878,2.25820592,84944.0,84943.0,16.77018901]
[1744907844643,2.25820592,84944.0,84943.0,16.67618901]
[1744907845573,2.24820592,84944.0,84943.0,16.67618901]
[1744907845889,1.90820592,84944.0,84943.0,16.67618901]
[1744907846111,1.89721661,84944.0,84943.0,16.67618901]
[1744907846295,2.07019576,84944.0,84943.0,16.67618901]
[1744907846500,2.02469576,84944.0,84943.0,16.67618901]
[1744907846701,1.97719576,84944.0,84943.0,16.67618901]
[1744907846912,1.95521714,84944.0,84943.0,16.67618901]
[1744907847880,1.54241714,84944.0,84943.0,16.67618901]
[1744907854945,1.54241714,84944.0,84943.0,16.58218901]
[1744907857209,1.54241714,84944.0,84943.0,16.38533736]
[1744907858274,1.56438747,84944.0,84943.0,16.38533736]
[1744907859018,1.37686747,84944.0,84943.0,16.38533736]
[1744907859212,1.56438747,84944.0,84943.0,16.38533736]
[1744907859640,1.97718747,84944.0,84943.0,16.38533736]
[1744907860803,1.90350832,84944.0,84943.0,16.38533736]
[1744907860994,2.15509639,84944.0,84943.0,16.38533736]
[1744907861209,2.20509639,84944.0,84943.0,15.84052316]
[1744907862856,2.20609639,84944.0,84943.0,15.84052316]
[1744907863525,2.54609639,84944.0,84943.0,14.40035515]
[1744907863722,2.54709639,84944.0,84943.0,12.50231703]
[1744907864669,2.54709639,84944.0,84943.0,12.45525753]
[1744907864993,2.53149639,84944.0,84943.0,10.99295059]
[1744907865173,2.53149639,84944.0,84943.0,10.98706816]
[1744907865368,2.53349639,84944.0,84943.0,10.94589109]
[1744907865781,2.53549639,84944.0,84943.0,10.94589109]
[1744907866227,2.53249639,84944.0,84943.0,10.94589109]
[1744907866382,2.56620778,84944.0,84943.0,10.94589109]
[1744907866778,2.53549639,84944.0,84943.0,10.94589109]
[1744907866982,2.53349639,84944.0,84943.0,10.94589109]
[1744907867622,2.53349639,84944.0,84943.0,10.81536277]
[1744907867956,2.53549639,84944.0,84943.0,10.81536277]
[1744907868477,2.53349639,84944.0,84943.0,10.40256277]
[1744907868686,2.53049639,84944.0,84943.0,10.40256277]
[1744907868902,2.6499443,84944.0,84943.0,10.40256277]
[1744907869101,2.53049639,84944.0,84943.0,10.40256277]
[1744907869507,2.53149639,84944.0,84943.0,10.40256277]
[1744907869710,2.49879639,84944.0,84943.0,10.40256277]
[1744907871129,2.62259639,84944.0,84943.0,10.40256277]
[1744907875381,2.62259639,84944.0,84943.0,10.30856277]
[1744907876081,2.7420443,84944.0,84943.0,10.30856277]
[1744907876252,2.7747443,84944.0,84943.0,10.30856277]
[1744907877646,2.65529639,84944.0,84943.0,10.30856277]
[1744907880346,2.65529639,84944.0,84943.0,9.89576277]
[1744907880561,2.62259639,84944.0,84943.0,9.89576277]
[1744907880732,2.45199639,84944.0,84943.0,9.89576277]
[1744907881148,2.43745554,84944.0,84943.0,9.89576277]
[1744907881512,2.45199639,84944.0,84943.0,9.68087259]
[1744907882068,2.38745554,84944.0,84943.0,9.68087259]
[1744907882306,2.43745554,84944.0,84943.0,9.68087259]
[1744907882452,2.45199639,84944.0,84943.0,9.68087259]
[1744907883113,2.40199639,84944.0,84943.0,9.68087259]
[1744907883601,2.45199639,84944.0,84943.0,9.68087259]
[1744907883907,2.45099639,84944.0,84943.0,9.68087259]
[1744907884710,2.48215687,84944.0,84943.0,9.68087259]
[1744907884912,3.58363687,84944.0,84943.0,9.68087259]
[1744907885123,3.58463687,84944.0,84943.0,9.68087259]
[1744907885335,3.55347639,84944.0,84943.0,9.58687259]
[1744907889351,3.55351383,84944.0,84943.0,9.58687259]
[1744907889905,3.67731383,84944.0,84943.0,9.58687259]
[1744907890548,3.75701383,84944.0,84943.0,8.01587884]
[1744907890873,3.53679383,84944.0,84943.0,8.01587884]
[1744907891118,3.71367383,84944.0,84943.0,8.01587884]
[1744907891324,3.83312174,84944.0,84943.0,8.01587884]
[1744907892504,3.71367383,84944.0,84943.0,8.01587884]
[1744907894239,3.71367383,84944.0,84943.0,6.86831691]
[1744907894413,3.71367383,84944.0,84943.0,6.40322719]
[1744907894620,3.71367383,84944.0,84943.0,6.3973435]
[1744907894817,3.71367383,84944.0,84943.0,6.35615766]
[1744907895020,3.71367383,84944.0,84943.0,6.35027397]
[1744907895240,3.83312174,84944.0,84943.0,6.35027397]
[1744907895441,3.83312174,84944.0,84943.0,6.25627397]
[1744907895656,3.71367383,84944.0,84943.0,6.25627397]
[1744907896188,3.58987383,84944.0,84943.0,6.25627397]
[1744907898376,3.41299383,84944.0,84943.0,6.25627397]
[1744907898575,3.58991383,84944.0,84943.0,6.25627397]
[1744907899712,3.58991383,84944.0,84943.0,6.03178945]
[1744907900368,3.70936174,84944.0,84943.0,6.03178945]
[1744907900581,3.58991383,84944.0,84943.0,6.03178945]
[1744907901039,3.53679383,84944.0,84943.0,6.03178945]
[1744907901252,3.66671383,84944.0,84943.0,6.03178945]
[1744907901458,2.90192375,84944.0,84943.0,6.03178945]
[1744907901668,2.95192375,84944.0,84943.0,6.03178945]
[1744907901870,3.54191383,84944.0,84943.0,6.03178945]
[1744907902047,3.52737298,84944.0,84943.0,6.03178945]
[1744907902374,3.49191383,84944.0,84943.0,6.03178945]
[1744907902556,3.54191383,84944.0,84943.0,6.03178945]
[1744907903078,3.2564646,84944.0,84943.0,6.03178945]
[1744907903253,2.67773095,84944.0,84943.0,6.07888945]
[1744907903465,2.8591918,84944.0,84943.0,6.07888945]
[1744907903756,2.84465095,84944.0,84943.0,6.07888945]
[1744907904274,2.8591918,84944.0,84943.0,6.07888945]
[1744907904590,2.8592318,84944.0,84943.0,6.07888945]
[1744907905018,3.10468103,84944.0,84943.0,6.07888945]
[1744907905260,3.10468103,84944.0,84943.0,6.03278945]
[1744907905462,3.49468103,84944.0,84943.0,6.03278945]
[1744907905664,3.49468103,84944.0,84943.0,5.93878945]
[1744907907409,3.49467888,84944.0,84943.0,5.93878945]
[1744907909793,3.73892679,84944.0,84943.0,5.93878945]
[1744907911699,3.73992679,84944.0,84943.0,5.93878945]
[1744907914121,3.73992679,84944.0,84943.0,5.90408945]
[1744907914883,3.62047888,84944.0,84943.0,5.90408945]
[1744907915696,3.62047888,84944.0,84943.0,5.81008945]
[1744907918127,3.62047888,84944.0,84943.0,5.39728945]
[1744907921708,3.62047888,84944.0,84943.0,4.19185228]
[1744907922917,3.62047888,84944.0,84943.0,4.18467228]
[1744907922918,3.61667888,84944.0,84943.0,4.18467228]
[1744907923147,3.73612679,84944.0,84943.0,2.83247295]
[1744907923813,3.73612679,84944.0,84943.0,2.81165296]
[1744907924133,3.73612679,84944.0,84943.0,2.39885296]
[1744907925292,3.73612679,84944.0,84943.0,1.08094862]
[1744907925471,0.52934085,84930.0,84929.0,0.0006844]
[1744907925675,0.76485108,84922.0,84903.0,0.0475]
[1744907925994,0.76485385,84921.0,84920.0,0.359]
[1744907926273,1.04430176,84921.0,84920.0,0.359]
[1744907926442,1.07730265,84921.0,84920.0,0.265]
[1744907926941,1.07775249,84921.0,84920.0,0.265]
[1744907927967,1.07975249,84921.0,84920.0,0.265]
[1744907928184,0.95695249,84921.0,84920.0,0.265]
[1744907928349,0.70689864,84921.0,84920.0,0.265]
[1744907928565,0.95495249,84921.0,84920.0,0.265]
[1744907928787,0.71943949,84921.0,84920.0,0.265]
[1744907928940,0.65489864,84921.0,84920.0,0.3126]
[1744907929142,0.70389864,84921.0,84920.0,0.3126]
[1744907929408,0.71843949,84921.0,84920.0,0.3126]
[1744907929590,0.72043949,84921.0,84920.0,0.3126]
[1744907929941,0.67043949,84921.0,84920.0,0.3126]
[1744907930135,0.65289864,84921.0,84920.0,0.3136]
[1744907930364,0.48705864,84921.0,84920.0,0.3136]
[1744907930586,0.49005864,84921.0,84920.0,0.3136]
[1744907930791,0.82905864,84921.0,84920.0,0.3136]
[1744907931195,0.82705864,84921.0,84920.0,0.3136]
[1744907931452,0.84159949,84921.0,84920.0,0.3136]
[1744907932378,0.84059949,84921.0,84920.0,0.3136]
[1744907932595,0.84056448,84921.0,84920.0,0.3136]
[1744907934638,0.82602363,84921.0,84920.0,0.3136]
[1744907936614,0.82602363,84921.0,84920.0,0.2196]
[1744907937294,0.32054363,84921.0,84920.0,0.2687]
[1744907937525,0.27374363,84921.0,84920.0,0.2687]
[1744907938168,0.22694363,84921.0,84920.0,0.50421577]
[1744907938412,0.22694363,84921.0,84920.0,0.2687]
[1744907938599,0.20497302,84921.0,84920.0,0.2687]
[1744907939086,0.19397775,84921.0,84920.0,0.2687]
[1744907940857,0.21596829,84921.0,84920.0,0.2687]
[1744907941307,0.22696359,84921.0,84920.0,0.2687]
[1744907942910,0.22700359,84921.0,84920.0,0.2687]
[1744907943496,0.24189638,84921.0,84920.0,0.2687]
[1744907944068,0.22700359,84921.0,84920.0,0.2687]
[1744907944322,0.22700359,84921.0,84920.0,0.2211]
[1744907944653,0.22700359,84921.0,84920.0,0.172]
[1744907946691,0.22700359,84921.0,84920.0,0.078]
[1744907947131,0.22700359,84921.0,84915.0,0.030742]
[1744907947472,0.11944791,84919.0,84912.0,0.0457]
[1744907947676,0.11944791,84919.0,84900.0,0.40657425]
[1744907947804,0.11944791,84919.0,84909.0,0.35919025]
[1744907948192,0.02199054,84918.0,84900.0,0.45319025]
[1744907948356,0.14143845,84917.0,84900.0,0.35919025]
[1744907948543,0.11944791,84912.0,84890.0,0.36287565]
[1744907948890,0.02199054,84911.0,84900.0,0.45319025]
[1744907949138,0.11944791,84910.0,84900.0,0.45319025]
[1744907949327,0.14143845,84910.0,84900.0,0.35919025]
[1744907949603,0.14143845,84910.0,84900.0,0.45319025]
[1744907949832,0.02199054,84909.0,84900.0,0.45319025]
[1744907950027,0.11944791,84908.0,84900.0,0.45319025]
[1744907950325,0.0109953,84907.0,84901.0,0.0459]
[1744907950461,0.11944791,84906.0,84901.0,0.0459]
[1744907950819,0.0109953,84907.0,84905.0,0.0463]
[1744907951364,0.16764,84908.0,84905.0,0.0463]
[1744907951551,0.28708791,84908.0,84905.0,0.0463]
[1744907952387,4e-05,84907.0,84905.0,0.0463]
[1744907954416,0.11944791,84906.0,84905.0,0.0463]
[1744907954621,0.11944791,84906.0,84895.0,0.04049961]
[1744907954622,0.11944791,84906.0,84896.0,0.0487]
[1744907955086,0.11944791,84906.0,84890.0,0.45319025]
[1744907955300,0.0219855,84905.0,84890.0,0.38119025]
[1744907955527,0.11944791,84904.0,84890.0,0.38119025]
[1744907955863,0.01099519,84903.0,84890.0,0.38119025]
[1744907956039,0.11944791,84902.0,84890.0,0.38119025]
[1744907956219,0.11944791,84898.0,84881.0,0.0008422]
[1744907956563,0.0219855,84897.0,84881.0,0.0008422]
[1744907956762,0.14143341,84896.0,84888.0,0.45319025]
[1744907957120,0.14143341,84896.0,84871.0,0.01178258]
[1744907957320,0.01099519,84895.0,84880.0,0.45319025]
[1744907957531,0.11944791,84894.0,84880.0,0.45319025]
[1744907957740,0.11944791,84894.0,84880.0,0.35919025]
[1744907957959,0.14143341,84894.0,84880.0,0.35919025]
[1744907958164,0.14143341,84894.0,84881.0,0.0497]
[1744907958675,0.14188325,84894.0,84880.0,0.31489025]
[1744907958882,0.03298069,84893.0,84880.0,0.31489025]
[1744907959037,0.03298069,84893.0,84880.0,0.22089025]
[1744907959038,0.11944791,84892.0,84880.0,0.22089025]
[1744907959552,0.0219855,84891.0,84880.0,0.22089025]
[1744907959738,0.30911341,84890.0,84880.0,0.22089025]
[1744907959940,0.3201086,84890.0,84880.0,0.22089025]
[1744907960541,0.2981231,84890.0,84880.0,0.22089025]
[1744907961327,0.01099519,84889.0,84880.0,0.22089025]
[1744907961591,0.11944791,84888.0,84880.0,0.22089025]
[1744907964530,0.11944791,84888.0,84882.0,0.01178106]
[1744907964757,0.11944791,84888.0,84887.0,0.23560733]
[1744907965028,0.28712791,84888.0,84887.0,0.23560733]
[1744907965728,0.28712791,84888.0,84886.0,0.2356098]
[1744907965940,0.28712791,84888.0,84883.0,0.24739733]
[1744907966147,0.28712791,84888.0,84880.0,0.2356253]
[1744907966262,0.28712791,84888.0,84875.0,0.0499]
[1744907966478,0.28712791,84888.0,84878.0,0.45319025]
[1744907966723,0.28712791,84888.0,84874.0,0.0036]
[1744907966724,0.28712791,84888.0,84874.0,0.01538217]
[1744907966933,0.28712791,84888.0,84878.0,0.45319025]
[1744907967181,0.01098771,84887.0,84878.0,0.45319025]
[1744907967383,0.11944791,84886.0,84878.0,0.45319025]
[1744907967552,0.11944791,84886.0,84876.0,0.23563677]
[1744907967806,0.11944791,84886.0,84876.0,0.68882702]
[1744907968164,0.11944791,84886.0,84873.0,0.23564611]
[1744907968397,0.01098771,84885.0,84874.0,0.23564213]
[1744907968542,0.11944791,84884.0,84876.0,0.23563701]
[1744907968747,0.11944791,84884.0,84875.0,0.24742237]
[1744907969010,0.11944791,84884.0,84875.0,0.23564034]
[1744907969264,0.11944791,84884.0,84875.0,0.24742237]
[1744907969492,0.11944791,84884.0,84876.0,0.24741908]
[1744907969692,0.11944791,84884.0,84874.0,0.70061455]
[1744907969890,0.11944791,84884.0,84875.0,0.24742209]
[1744907970216,0.11944791,84884.0,84879.0,0.01178147]
[1744907970508,0.11944791,84884.0,84875.0,0.01178203]
[1744907970709,0.11944791,84884.0,84876.0,0.23563702]
[1744907970868,0.11944791,84884.0,84877.0,0.23563509]
[1744907971067,0.11944791,84884.0,84875.0,0.23563999]
[1744907971294,0.11948791,84884.0,84876.0,0.23563664]
[1744907971514,0.11948791,84884.0,84876.0,0.24741853]
[1744907971693,0.11948791,84884.0,84872.0,0.01178244]
[1744907972015,0.11948791,84884.0,84875.0,0.24742216]
[1744907972611,0.11948791,84884.0,84872.0,0.01178244]
[1744907972612,0.11948791,84884.0,84873.0,0.2356462]
[1744907972852,0.11948791,84884.0,84871.0,0.04986286]
[1744907973001,0.0488,84883.0,84871.0,0.23565093]
[1744907973201,0.11944791,84882.0,84872.0,0.15342994]
[1744907973503,0.11944791,84882.0,84872.0,0.01178244]
[1744907973673,0.11944791,84882.0,84872.0,0.247431]
[1744907973873,0.11944791,84882.0,84872.0,0.153431]
[1744907974517,0.01099556,84881.0,84871.0,0.03425102]
[1744907974857,0.11944791,84880.0,84870.0,0.45319025]
[1744907975030,0.11944791,84880.0,84870.0,0.39432898]
[1744907975237,0.11944791,84875.0,84856.0,0.14790506]
[1744907975443,0.11944791,84875.0,84852.0,0.01178522]
[1744907975643,0.11944791,84875.0,84860.0,0.45319025]
[1744907975873,0.03298755,84874.0,84860.0,0.45319025]
[1744907976082,0.11944791,84873.0,84860.0,0.45319025]
[1744907976302,0.11944791,84873.0,84849.0,0.2357106]
[1744907976303,0.11944791,84868.0,84843.0,0.31138834]
[1744907976511,0.11944791,84868.0,84850.0,0.45319025]
[1744907976739,0.17188,84867.0,84859.0,0.01178425]
[1744907976972,0.11944791,84866.0,84862.0,0.01178383]
[1744907977119,0.18287556,84865.0,84860.0,0.01178411]
[1744907977332,0.11944791,84864.0,84856.0,0.01178467]
[1744907977487,0.11989747,84864.0,84856.0,0.01178467]
[1744907977692,0.11989747,84864.0,84855.0,0.46497505]
[1744907978131,0.11989747,84864.0,84855.0,0.45319025]
[1744907978336,0.11989747,84864.0,84850.0,0.70950943]
[1744907978551,0.11989747,84864.0,84852.0,0.2474883]
[1744907978707,0.0966,84863.0,84850.0,0.00882393]
[1744907978909,0.11944791,84862.0,84845.0,0.01178619]
[1744907979134,0.11944791,84862.0,84845.0,0.02063484]
[1744907979340,0.11944791,84862.0,84845.0,0.00884865]
[1744907979499,0.11944791,84862.0,84843.0,0.27264963]
[1744907979860,0.11944791,84860.0,84832.0,0.2357579]
[1744907980057,0.11944791,84860.0,84837.0,0.0117873]
[1744907980058,0.01098516,84859.0,84837.0,0.0117873]
[1744907980215,0.0453,84857.0,84840.0,0.45319025]
[1744907980434,0.14141621,84856.0,84840.0,0.46497714]
[1744907980642,0.14141621,84856.0,84839.0,0.01178703]
[1744907980993,0.11944791,84856.0,84840.0,0.45319025]
[1744907981309,0.11944791,84856.0,84832.0,0.28241749]
[1744907981310,0.11944791,84847.0,84820.0,0.45923622]
[1744907981511,0.11944791,84847.0,84820.0,0.43902589]
[1744907981512,0.0492,84846.0,84820.0,0.43902589]
[1744907981641,0.11944791,84843.0,84820.0,0.42723622]
[1744907981987,0.29136791,84842.0,84820.0,0.46285378]
[1744907982184,0.13398876,84841.0,84820.0,0.47166211]
[1744907982340,0.11944791,84837.0,84820.0,0.49761614]
[1744907982546,0.11944791,84837.0,84820.0,0.48880781]
[1744907982768,0.0476,84835.0,84820.0,0.03561756]
[1744907982984,0.0476,84835.0,84820.0,0.45319025]
[1744907982985,0.11944791,84834.0,84820.0,0.45319025]
[1744907983170,0.11944791,84834.0,84820.0,0.35919025]
[1744907983347,0.11944791,84834.0,84820.0,0.35899177]
[1744907983548,0.11944791,84834.0,84819.0,0.24758408]
[1744907983549,0.11989719,84834.0,84817.0,0.0008436]
[1744907983757,0.03291817,84833.0,84815.0,0.01263356]
[1744907983956,0.11944791,84832.0,84815.0,0.01263356]
[1744907984168,0.17192,84831.0,84816.0,0.23580406]
[1744907984368,0.11944791,84830.0,84820.0,0.45319025]
[1744907984572,0.11944791,84830.0,84818.0,0.23579756]
[1744907984776,0.11944791,84830.0,84815.0,0.0008432]
[1744907985194,0.17192,84831.0,84811.0,0.01179092]
[1744907985195,0.11944791,84823.0,84811.0,0.01179092]
[1744907985412,0.11944791,84823.0,84820.0,0.01178967]
[1744907985631,0.11944791,84823.0,84820.0,0.23579243]
[1744907985831,0.11944791,84823.0,84817.0,0.23580178]
[1744907986032,0.11944791,84823.0,84818.0,0.14179797]
[1744907986439,0.11944791,84823.0,84818.0,0.04779797]
[1744907986873,0.11944791,84823.0,84815.0,0.2013932]
[1744907987079,0.11944791,84823.0,84817.0,0.23580062]
[1744907987283,0.11948791,84823.0,84817.0,0.23580062]
[1744907987978,0.11952791,84823.0,84818.0,0.23579833]
[1744907988170,0.11956791,84823.0,84817.0,0.23580062]
[1744907988518,0.11960791,84823.0,84817.0,0.23580062]
[1744907988729,0.11964791,84823.0,84821.0,0.23579038]
[1744907988958,0.11968791,84823.0,84821.0,0.23579038]
[1744907989175,0.11972791,84823.0,84819.0,0.24757999]
[1744907989403,0.11972791,84823.0,84820.0,0.23579262]
[1744907989609,0.11976791,84823.0,84818.0,0.23579851]
[1744907989842,0.11980791,84823.0,84820.0,0.23579092]
[1744907990057,0.11980791,84823.0,84816.0,0.2358037]
[1744907990263,0.11980791,84823.0,84816.0,0.24759392]
[1744907990465,0.11980791,84823.0,84809.0,0.0117912]
[1744907990683,0.11980791,84823.0,84812.0,0.24760646]
[1744907990931,0.11980791,84823.0,84816.0,0.23580456]
[1744907991088,0.11980791,84823.0,84815.0,0.24759214]
[1744907991282,0.12180791,84823.0,84821.0,0.23579066]
[1744907991489,0.12180791,84823.0,84819.0,0.23579457]
[1744907991763,0.12180791,84823.0,84819.0,0.14179457]
[1744907991932,0.00236,84823.0,84822.0,0.23578788]
[1744907994291,0.00236,84823.0,84822.0,0.23532088]
[1744907994511,0.17432,84823.0,84821.0,0.23578989]
[1744907994694,0.17432,84823.0,84822.0,0.14178788]
[1744907994917,0.17432,84823.0,84815.0,0.00867456]
[1744907994918,0.29376791,84823.0,84815.0,0.00867456]
[1744907995165,0.0466,84821.0,84812.0,0.00865866]
[1744907995403,0.0473,84819.0,84800.0,0.03520624]
[1744907995602,0.16604791,84820.0,84791.0,0.24766717]
[1744907995603,0.16674791,84815.0,84795.0,0.23586101]
[1744907995732,0.16674791,84815.0,84800.0,0.45319025]
[1744907996134,0.03283219,84814.0,84796.0,0.23586018]
[1744907996364,0.03283219,84814.0,84800.0,0.45319025]
[1744907996365,0.14133697,84813.0,84800.0,0.45319025]
[1744907996779,0.02188906,84812.0,84800.0,0.42919025]
[1744907996994,0.11944791,84811.0,84794.0,0.23586329]
[1744907997281,0.11944791,84811.0,84789.0,0.23587849]
[1744907997282,0.11944791,84807.0,84789.0,0.23587849]
[1744907997470,0.11944791,84805.0,84789.0,0.14187849]
[1744907997658,0.0452,84804.0,84790.0,0.23587488]
[1744907998031,0.14133697,84803.0,84789.0,0.15367247]
[1744907998204,0.14133697,84803.0,84786.0,0.23630842]
[1744907998412,0.14133697,84803.0,84783.0,0.15160192]
[1744907998613,0.02188906,84802.0,84782.0,0.23589769]
[1744907998838,0.13039104,84801.0,84782.0,0.23589769]
[1744907998974,0.13039104,84801.0,84790.0,0.45319025]
[1744907999184,0.02188906,84800.0,84788.0,0.23588127]
[1744907999421,0.31333697,84799.0,84790.0,0.45319025]
[1744907999877,0.03283219,84798.0,84790.0,0.45319025]
[1744908000058,0.14133697,84797.0,84790.0,0.45319025]
[1744908000204,0.14133697,84797.0,84790.0,0.35919025]
[1744908000403,0.02188906,84796.0,84790.0,0.35919025]
[1744908000604,0.11944791,84795.0,84782.0,0.01179495]
[1744908000828,0.11944791,84795.0,84786.0,0.23588698]
[1744908001027,0.02188906,84794.0,84785.0,0.23588805]
[1744908001241,0.11944791,84793.0,84781.0,0.01221719]
[1744908001459,0.02188906,84792.0,84786.0,0.14188696]
[1744908001662,0.02188906,84792.0,84784.0,0.01179467]
[1744908001663,0.11944791,84791.0,84789.0,0.23587701]
[1744908001912,0.11944791,84791.0,84789.0,0.15687701]
[1744908002115,0.02188906,84790.0,84789.0,0.14187701]
[1744908002282,0.1522801,84790.0,84784.0,0.23589227]
[1744908002502,0.11944791,84789.0,84781.0,0.01221719]
[1744908002646,0.11944791,84789.0,84787.0,0.23588451]
[1744908003052,0.11944791,84789.0,84780.0,0.38320225]
[1744908003256,0.11944791,84789.0,84782.0,0.01179495]
[1744908003257,0.01094313,84788.0,84782.0,0.01179495]
[1744908003481,0.11944791,84787.0,84780.0,0.61910454]
[1744908003677,0.14135311,84787.0,84781.0,0.23590128]
[1744908003881,0.0477,84786.0,84780.0,0.32323049]
[1744908004085,0.14135311,84785.0,84780.0,0.32323049]
[1744908004293,0.14135311,84785.0,84779.0,0.18772975]
[1744908004444,0.0219052,84784.0,84780.0,0.24769928]
[1744908004689,0.13039104,84783.0,84780.0,0.15369928]
[1744908004884,0.0219052,84782.0,84781.0,0.23589981]
[1744908005109,0.14135311,84782.0,84780.0,0.16549451]
[1744908005321,0.0219052,84782.0,84781.0,0.14189981]
[1744908006254,0.03284833,84782.0,84781.0,0.14189981]
[1744908006668,0.01094313,84782.0,84781.0,0.14189981]
[1744908006890,4e-05,84782.0,84781.0,0.14189981]
[1744908008852,4e-05,84782.0,84781.0,0.14425858]
[1744908011209,4e-05,84782.0,84781.0,0.23589981]
[1744908011418,4e-05,84782.0,84781.0,0.23825853]
[1744908012113,4e-05,84782.0,84781.0,0.57825853]
[1744908012312,4e-05,84782.0,84781.0,0.57689981]
[1744908015820,4e-05,84786.0,84781.0,0.57689981]
[1744908015821,4e-05,84786.0,84785.0,0.23589078]
[1744908015969,4e-05,84786.0,84785.0,0.24834907]
[1744908016171,4e-05,84786.0,84785.0,0.24599078]
[1744908016782,4e-05,84786.0,84785.0,0.71997954]
[1744908018662,4e-05,84786.0,84785.0,0.58599078]
[1744908019403,8e-05,84786.0,84785.0,0.58599078]
[1744908020518,8e-05,84786.0,84785.0,0.70543869]
[1744908023418,8e-05,84786.0,84785.0,0.69533869]
[1744908023869,8e-05,84786.0,84785.0,0.45416708]
[1744908024224,8e-05,84786.0,84785.0,0.57060995]
[1744908032351,8e-05,84786.0,84785.0,0.23589078]
[1744908035040,0.002,84793.0,84792.0,0.2358713]
[1744908035229,0.1712,84807.0,84802.0,0.23584349]
[1744908035411,0.166,84811.0,84802.0,0.23584349]
[1744908037316,0.166,84811.0,84802.0,0.23820156]
[1744908038560,0.166,84811.0,84802.0,0.24690945]
[1744908038761,0.166,84811.0,84802.0,0.24455138]
[1744908039183,0.2144,84813.0,84802.0,0.24455138]
[1744908041155,0.0484,84813.0,84802.0,0.24455138]
[1744908042944,0.0008428,84820.0,84802.0,0.24455138]
[1744908042945,0.0008428,84820.0,84819.0,0.23579622]
[1744908043216,0.00090101,84820.0,84819.0,0.23815394]
[1744908043423,0.0485,84834.0,84822.0,0.23578788]
[1744908043622,0.0984,84834.0,84822.0,0.57814523]
[1744908043814,1e-08,84824.0,84823.0,0.2357851]
[1744908043992,1e-08,84824.0,84823.0,0.9877851]
[1744908047718,1e-08,84824.0,84823.0,1.10723301]
[1744908049552,1e-08,84837.0,84836.0,0.57574897]
[1744908052883,0.04960001,84837.0,84836.0,0.57574897]
[1744908054313,0.04960001,84837.0,84836.0,0.58459398]
[1744908057193,0.04960001,84837.0,84836.0,0.41243778]